[Event "44th Chess Olympiad Women 2022"]
[Site "Chennai"]
[Date "2022.08.05"]
[Round "7.30"]
[White "Machlik, Edit"]
[Black "Oviedo Acosta, Paula"]
[Result "1-0"]
[WhiteElo "2084"]
[BlackElo "1855"]
[Annotator "NA RC"]
[PlyCount "131"]
[EventDate "2022.??.??"]
[TimeControl "60"]

1. d4 {[%emt 0:00:03]} Nf6 {[%emt 0:00:12]} 2. c4 {[%emt 0:00:05]} c5 {[%emt 0:
00:00]} 3. d5 {[%emt 0:00:05]} g6 {[%emt 0:00:11]} 4. Nc3 {[%emt 0:01:05]} Bg7
{[%emt 0:00:29]} 5. e4 {[%emt 0:05:31]} d6 {[%emt 0:00:53]} 6. f4 {[%emt 0:00:
00]} O-O {[%emt 0:01:41]} 7. Nf3 {[%emt 0:00:08]} e6 {[%emt 0:00:25]} 8. dxe6 {
[%emt 0:00:33]} fxe6 {[%emt 0:00:20]} 9. Bd3 {[%emt 0:00:07]} Nc6 {[%emt 0:00:
00]} 10. O-O {[%emt 0:00:12]} Nd4 {[%emt 0:00:08]} 11. Bd2 {[%emt 0:00:41]} Rb8
{[%emt 0:14:48]} 12. Qe1 {[%emt 0:09:57]} b5 {[%emt 0:39:54]} 13. Nxd4 {
[%emt 0:08:17]} cxd4 {[%emt 0:00:00]} 14. Nxb5 {[%emt 0:30:33]} e5 {[%emt 0:00:
00]} 15. fxe5 {[%emt 0:09:08]} dxe5 {[%emt 0:00:00]} 16. c5 {[%emt 0:01:55]}
Be6 {[%emt 0:00:00]} 17. b4 {[%emt 0:04:41]} Kh8 {[%emt 0:00:00]} 18. a3 {
[%emt 0:03:49]} Nxe4 {[%emt 0:01:18]} 19. Rxf8+ {[%emt 0:07:23]} Qxf8 {[%emt 0:
00:00]} 20. Qxe4 {[%emt 0:01:30]} Bf5 {[%emt 0:00:40]} 21. Qf3 {[%emt 0:02:29]}
e4 {[%emt 0:01:20]} 22. Bxe4 {[%emt 0:00:27]} Bxe4 {[%emt 0:04:49]} 23. Qxf8+ {
[%emt 0:03:22]} Rxf8 {[%emt 0:01:22]} 24. Re1 {[%emt 0:01:49]} Bd5 {[%emt 0:00:
00]} 25. Nd6 {[%emt 0:01:01]} d3 {[%emt 0:03:14]} 26. Re8 {[%emt 0:00:40]} Bd4+
{[%emt 0:00:09]} 27. Kh1 {[%emt 0:00:56]} Rxe8 {[%emt 0:01:44]} 28. Nxe8 {
[%emt 0:00:01]} Be5 {[%emt 0:06:07]} 29. Kg1 {[%emt 0:02:03]} Kg8 {[%emt 0:00:
00]} 30. Kf2 {[%emt 0:03:38]} Kf7 {[%emt 0:01:17]} 31. Nd6+ {[%emt 0:00:07]}
Bxd6 {[%emt 0:00:06]} 32. cxd6 {[%emt 0:00:02]} Ke6 {[%emt 0:01:09]} 33. Bf4 {
[%emt 0:00:26]} Bc6 {[%emt 0:01:21]} 34. Ke3 {[%emt 0:02:06]} Bb5 {[%emt 0:00:
00]} 35. g4 {[%emt 0:00:56]} Kd5 {[%emt 0:00:48]} 36. Kd2 {[%emt 0:00:44]} Ke4
{[%emt 0:00:25]} 37. Be3 {[%emt 0:00:32]} a6 {[%emt 0:00:26]} 38. g5 {[%emt 0:
00:00]} Kd5 {[%emt 0:01:28]} 39. Bf4 {[%emt 0:00:24]} Ke4 {[%emt 0:00:23]} 40.
Bg3 {[%emt 0:00:24]} Kf3 {[%emt 0:00:39]} 41. Be1 {[%emt 0:11:40]} Kg4 {
[%emt 0:02:38]} 42. h4 {[%emt 0:00:11]} Kf3 {[%emt 0:00:05]} 43. d7 {[%emt 0:
00:00]} Bxd7 {[%emt 0:00:13]} 44. Kxd3 {[%emt 0:00:04]} Kg4 {[%emt 0:05:49]}
45. Kd4 {[%emt 0:03:14]} Kh5 {[%emt 0:00:32]} 46. Kc5 {[%emt 0:03:26]} Bb5 {
[%emt 0:03:11]} 47. Kb6 {[%emt 0:00:25]} h6 {[%emt 0:00:21]} 48. Bd2 {[%emt 0:
00:00]} hxg5 {[%emt 0:00:09]} 49. Bxg5 {[%emt 0:00:50]} Be2 {[%emt 0:07:45]}
50. a4 {[%emt 0:00:09]} Kg4 {[%emt 0:00:05]} 51. b5 {[%emt 0:00:12]} axb5 {
[%emt 0:01:00]} 52. axb5 {[%emt 0:00:09]} Kf5 {[%emt 0:00:14]} 53. Kc6 {
[%emt 0:00:21]} Ke6 {[%emt 0:02:12]} 54. b6 {[%emt 0:00:28]} Bf3+ {[%emt 0:00:
00]} 55. Kc7 {[%emt 0:00:06]} Ba8 {[%emt 0:00:10]} 56. b7 {[%emt 0:00:12]} Bxb7
{[%emt 0:00:05]} 57. Kxb7 {[%emt 0:00:02]} Kd7 {[%emt 0:00:08]} 58. Bf4 {
[%emt 0:00:09]} Ke6 {[%emt 0:00:13]} 59. Kc6 {[%emt 0:00:06]} Kf5 {[%emt 0:00:
00]} 60. Bg5 {[%emt 0:00:07]} Ke6 {[%emt 0:00:00]} 61. Kc7 {[%emt 0:00:19]} Kf7
{[%emt 0:01:00]} 62. Kd7 {[%emt 0:00:04]} Kf8 {[%emt 0:00:05]} 63. Ke6 {
[%emt 0:00:08]} Kg7 {[%emt 0:00:04]} 64. Ke7 {[%emt 0:00:07]} Kg8 {[%emt 0:00:
00]} 65. Kf6 {[%emt 0:00:07]} Kh7 {[%emt 0:00:08]} 66. Kf7 {[%emt 0:00:06]} 1-0

[Event "44th Chess Olympiad Women 2022"]
[Site "Chennai"]
[Date "2022.08.05"]
[Round "7.30"]
[White "Perez, Dalila"]
[Black "Stanford, Sheila Barth"]
[Result "0-1"]
[WhiteElo "1799"]
[BlackElo "2097"]
[Annotator "NA RC"]
[PlyCount "86"]
[EventDate "2022.??.??"]
[TimeControl "60"]

1. d4 {[%emt 0:00:04]} Nf6 {[%emt 0:00:12]} 2. Nf3 {[%emt 0:00:05]} g6 {
[%emt 0:00:18]} 3. c4 {[%emt 0:00:07]} Bg7 {[%emt 0:00:11]} 4. Nc3 {[%emt 0:00:
00]} d5 {[%emt 0:00:46]} 5. g3 {[%emt 0:01:46]} dxc4 {[%emt 0:08:27]} 6. Qa4+ {
[%emt 0:02:41]} Nfd7 {[%emt 0:13:47]} 7. Bf4 {[%emt 0:05:39]} O-O {[%emt 0:00:
00]} 8. Qxc4 {[%emt 0:06:29]} Nc6 {[%emt 0:30:46]} 9. Nd5 {[%emt 0:14:51]} Nb6
{[%emt 0:00:18]} 10. Nxb6 {[%emt 0:00:08]} axb6 {[%emt 0:10:38]} 11. Rd1 {
[%emt 0:08:11]} Ra5 {[%emt 0:05:41]} 12. a3 {[%emt 0:36:29]} Bf5 13. Bg2 {
[%emt 0:07:09]} Be4 14. Be3 {[%emt 0:00:15]} e6 15. O-O {[%emt 0:03:27]} Ne7
16. Bd2 {[%emt 0:00:20]} Ra6 17. Bb4 {[%emt 0:01:12]} Re8 {[%emt 0:02:01]} 18.
Bxe7 {[%emt 0:01:07]} Rxe7 19. e3 {[%emt 0:01:44]} Rd7 {[%emt 0:06:44]} 20. Rc1
{[%emt 0:02:51]} c6 {[%emt 0:01:53]} 21. Rfe1 {[%emt 0:00:00]} b5 22. Qe2 {
[%emt 0:01:22]} Bd5 {[%emt 0:02:32]} 23. Qc2 {[%emt 0:01:27]} f5 24. Ne5 {
[%emt 0:00:26]} Bxe5 25. dxe5 {[%emt 0:01:38]} Bxg2 {[%emt 0:05:51]} 26. Kxg2 {
[%emt 0:02:10]} Rd2 27. Qc3 {[%emt 0:00:32]} Ra8 28. Kg1 {[%emt 0:00:57]} Qd5
29. e4 {[%emt 0:01:56]} fxe4 {[%emt 0:00:28]} 30. Rxe4 {[%emt 0:01:25]} Rxf2 {
[%emt 0:00:37]} 31. Kxf2 {[%emt 0:00:00]} Qxe4 {[%emt 0:00:18]} 32. Kg1 {
[%emt 0:01:41]} Rf8 {[%emt 0:00:59]} 33. Qc5 {[%emt 0:00:00]} Rf3 34. Qb6 {
[%emt 0:01:26]} Qe3+ {[%emt 0:00:06]} 35. Qxe3 {[%emt 0:00:00]} Rxe3 {[%emt 0:
00:00]} 36. Rd1 {[%emt 0:00:07]} Rxe5 {[%emt 0:00:27]} 37. Rd8+ {[%emt 0:00:00]
} Kf7 {[%emt 0:00:10]} 38. Rd7+ {[%emt 0:01:06]} Kf6 {[%emt 0:00:34]} 39. Rxb7
{[%emt 0:01:12]} Re2 {[%emt 0:00:38]} 40. Rc7 {[%emt 0:01:52]} Rxb2 {[%emt 0:
00:00]} 41. Rxc6 {[%emt 0:00:00]} Kf5 42. Rb6 {[%emt 0:00:00]} Rb3 43. Kf2 {
[%emt 0:03:24]} e5 {[%emt 0:05:21]} 0-1

[Event "44th Chess Olympiad Women 2022"]
[Site "Chennai"]
[Date "2022.08.05"]
[Round "7.30"]
[White "Rodsmoen, Maud"]
[Black "Montiel Caceres, Helen"]
[Result "1-0"]
[WhiteElo "1975"]
[BlackElo "1763"]
[Annotator "NA"]
[PlyCount "89"]
[EventDate "2022.??.??"]
[TimeControl "60"]

1. e4 {[%emt 0:00:02]} c5 {[%emt 0:00:07]} 2. Nf3 {[%emt 0:00:04]} e6 {[%emt 0:
00:00]} 3. d4 {[%emt 0:00:04]} cxd4 {[%emt 0:00:05]} 4. Nxd4 {[%emt 0:00:03]}
Nc6 {[%emt 0:00:08]} 5. Nc3 {[%emt 0:00:20]} Qc7 {[%emt 0:00:05]} 6. Be3 {
[%emt 0:00:41]} a6 {[%emt 0:00:06]} 7. Be2 {[%emt 0:00:29]} Nf6 {[%emt 0:00:06]
} 8. O-O {[%emt 0:00:27]} Bb4 {[%emt 0:00:15]} 9. Na4 {[%emt 0:01:25]} O-O {
[%emt 0:01:33]} 10. Nxc6 {[%emt 0:03:19]} bxc6 {[%emt 0:00:07]} 11. Nb6 {
[%emt 0:07:10]} Rb8 {[%emt 0:01:09]} 12. Nxc8 {[%emt 0:00:31]} Qxc8 {[%emt 0:
00:00]} 13. e5 {[%emt 0:10:05]} Nd5 {[%emt 0:04:40]} 14. Bc1 {[%emt 0:04:14]}
c5 {[%emt 0:08:29]} 15. c4 {[%emt 0:07:29]} Ne7 {[%emt 0:00:09]} 16. Bd3 {
[%emt 0:01:58]} Qc7 {[%emt 0:01:57]} 17. Qh5 {[%emt 0:03:20]} Ng6 {[%emt 0:00:
00]} 18. f4 {[%emt 0:03:41]} d6 {[%emt 0:11:52]} 19. Rf3 {[%emt 0:11:28]} dxe5
{[%emt 0:00:34]} 20. Rh3 {[%emt 0:07:03]} h6 {[%emt 0:00:08]} 21. Bxg6 {
[%emt 0:08:31]} fxg6 {[%emt 0:00:07]} 22. Qxe5 {[%emt 0:01:02]} Qxe5 {[%emt 0:
00:00]} 23. fxe5 {[%emt 0:00:04]} Rf5 {[%emt 0:00:12]} 24. Be3 {[%emt 0:03:56]}
Ba5 {[%emt 0:02:13]} 25. b3 {[%emt 0:03:36]} Bc3 {[%emt 0:03:30]} 26. Rd1 {
[%emt 0:02:42]} Rc8 {[%emt 0:02:48]} 27. Bxc5 {[%emt 0:03:09]} Bxe5 {[%emt 0:
00:00]} 28. Bb4 {[%emt 0:01:50]} Bb8 {[%emt 0:01:10]} 29. Rf3 {[%emt 0:04:21]}
Ba7+ {[%emt 0:00:51]} 30. Kf1 {[%emt 0:00:26]} Rc6 {[%emt 0:00:41]} 31. Bc3 {
[%emt 0:00:46]} Bc5 {[%emt 0:03:53]} 32. Rd8+ {[%emt 0:01:57]} Kh7 {[%emt 0:00:
00]} 33. Ke2 {[%emt 0:03:26]} Rc7 {[%emt 0:08:04]} 34. Ra8 {[%emt 0:02:11]} Rc6
{[%emt 0:02:22]} 35. Rd8 {[%emt 0:01:49]} Rc7 {[%emt 0:00:00]} 36. h3 {[%emt 0:
00:00]} h5 {[%emt 0:18:22]} 37. Re8 {[%emt 0:01:29]} Rc6 {[%emt 0:05:48]} 38.
b4 {[%emt 0:00:51]} Bg1 {[%emt 0:05:46]} 39. c5 {[%emt 0:01:20]} a5 {[%emt 0:
00:00]} 40. a3 {[%emt 0:01:25]} Rg5 {[%emt 0:03:38]} 41. Rff8 {[%emt 0:04:17]}
Rxg2+ {[%emt 0:04:58]} 42. Kf1 {[%emt 0:00:28]} Rf2+ {[%emt 0:00:29]} 43. Rxf2
{[%emt 0:00:19]} Bxf2 {[%emt 0:00:03]} 44. Kxf2 {[%emt 0:00:05]} axb4 {[%emt 0:
00:00]} 45. axb4 {[%emt 0:00:06]} 1-0

[Event "44th Chess Olympiad Women 2022"]
[Site "Chennai"]
[Date "2022.08.05"]
[Round "7.30"]
[White "Vargas, Gabriela"]
[Black "Machlik, Monika"]
[Result "1/2-1/2"]
[WhiteElo "2140"]
[BlackElo "2111"]
[Annotator "NA"]
[PlyCount "73"]
[EventDate "2022.??.??"]
[TimeControl "60"]

1. d4 {[%emt 0:00:04]} Nf6 {[%emt 0:00:03]} 2. Nf3 {[%emt 0:00:17]} e6 {
[%emt 0:00:05]} 3. e3 {[%emt 0:00:14]} b6 {[%emt 0:01:07]} 4. Bd3 {[%emt 0:00:
00]} Bb7 {[%emt 0:00:09]} 5. Nbd2 {[%emt 0:01:02]} c5 {[%emt 0:02:54]} 6. b3 {
[%emt 0:03:21]} Be7 {[%emt 0:05:08]} 7. O-O {[%emt 0:00:20]} Nc6 {[%emt 0:00:
00]} 8. a3 {[%emt 0:00:43]} O-O {[%emt 0:04:52]} 9. Bb2 {[%emt 0:00:16]} Re8 {
[%emt 0:02:40]} 10. Rc1 {[%emt 0:02:54]} Rc8 {[%emt 0:14:13]} 11. Re1 {[%emt 0:
00:00]} d5 {[%emt 0:13:43]} 12. Ne5 {[%emt 0:05:02]} Nxe5 {[%emt 0:07:52]} 13.
dxe5 {[%emt 0:00:04]} Ne4 {[%emt 0:02:17]} 14. Bb5 {[%emt 0:25:40]} Rf8 {
[%emt 0:01:32]} 15. Nxe4 {[%emt 0:02:49]} dxe4 {[%emt 0:00:04]} 16. Qe2 {
[%emt 0:00:13]} Qc7 {[%emt 0:02:05]} 17. Rcd1 {[%emt 0:01:21]} Rfd8 {[%emt 0:
00:00]} 18. a4 {[%emt 0:02:56]} Rxd1 {[%emt 0:05:39]} 19. Rxd1 {[%emt 0:00:23]}
Rd8 {[%emt 0:00:04]} 20. g3 {[%emt 0:07:12]} Rxd1+ {[%emt 0:07:32]} 21. Qxd1 {
[%emt 0:00:07]} Qd8 {[%emt 0:00:08]} 22. Qe1 {[%emt 0:06:44]} a5 {[%emt 0:00:
00]} 23. Bf1 {[%emt 0:05:11]} Qd5 {[%emt 0:01:20]} 24. c4 {[%emt 0:00:32]} Qd7
{[%emt 0:01:17]} 25. Bc3 {[%emt 0:00:47]} Bd8 {[%emt 0:02:57]} 26. Qb1 {
[%emt 0:00:24]} Be7 {[%emt 0:05:56]} 27. Bg2 {[%emt 0:00:19]} Qc6 {[%emt 0:00:
00]} 28. h4 {[%emt 0:00:55]} h6 {[%emt 0:00:47]} 29. Kh2 {[%emt 0:00:47]} Bd8 {
[%emt 0:01:22]} 30. Qd1 {[%emt 0:00:33]} Be7 {[%emt 0:00:10]} 31. Kh3 {[%emt 0:
00:00]} Kf8 {[%emt 0:01:57]} 32. Qg4 {[%emt 0:00:41]} Kg8 {[%emt 0:00:28]} 33.
Kh2 {[%emt 0:07:27]} Kf8 {[%emt 0:00:25]} 34. Kh3 {[%emt 0:05:10]} Kg8 {
[%emt 0:00:12]} 35. Kh2 {[%emt 0:00:07]} Kf8 {[%emt 0:00:24]} 36. Kh3 {[%emt 0:
00:00]} Kg8 {[%emt 0:00:25]} 37. Kh2 {[%emt 0:00:06]} 1/2-1/2

[Event "44th Chess Olympiad Women 2022"]
[Site "Chennai"]
[Date "2022.08.05"]
[Round "7.31"]
[White "Enomah Emmanuella Trust"]
[Black "Nazarova, Anastasia"]
[Result "0-1"]
[WhiteElo "1901"]
[BlackElo "2208"]
[Annotator "NA RC"]
[PlyCount "128"]
[EventDate "2022.??.??"]
[TimeControl "60"]

1. c4 {[%emt 0:00:03]} e5 {[%emt 0:00:04]} 2. g3 {[%emt 0:00:09]} Nf6 {[%emt 0:
00:00]} 3. Bg2 {[%emt 0:00:11]} c6 {[%emt 0:00:04]} 4. Nf3 {[%emt 0:00:19]} e4
{[%emt 0:00:07]} 5. Nd4 {[%emt 0:00:25]} d5 {[%emt 0:00:06]} 6. Nc3 {[%emt 0:
00:00]} dxc4 {[%emt 0:00:06]} 7. Nc2 {[%emt 0:00:14]} Bc5 {[%emt 0:00:07]} 8.
O-O {[%emt 0:00:54]} Bf5 {[%emt 0:03:58]} 9. Ne3 {[%emt 0:00:21]} Bxe3 {
[%emt 0:00:57]} 10. fxe3 {[%emt 0:00:14]} Bg6 {[%emt 0:00:09]} 11. Qc2 {
[%emt 0:01:23]} Qe7 {[%emt 0:00:24]} 12. b3 {[%emt 0:01:40]} cxb3 {[%emt 0:00:
00]} 13. Qxb3 {[%emt 0:00:07]} O-O {[%emt 0:00:54]} 14. Ba3 {[%emt 0:01:14]} c5
{[%emt 0:01:05]} 15. Rab1 {[%emt 0:03:40]} b6 {[%emt 0:13:11]} 16. Rf4 {
[%emt 0:00:48]} Nbd7 {[%emt 0:02:43]} 17. Rbf1 {[%emt 0:05:27]} Rae8 {[%emt 0:
00:00]} 18. Qa4 {[%emt 0:01:09]} Qe6 {[%emt 0:19:55]} 19. Bc1 {[%emt 0:01:01]}
a5 {[%emt 0:04:36]} 20. Rh4 {[%emt 0:03:53]} Re7 {[%emt 0:18:34]} 21. Bh3 {
[%emt 0:04:58]} Qd6 {[%emt 0:06:48]} 22. Nb5 {[%emt 0:05:17]} Qc6 {[%emt 0:00:
00]} 23. Qb3 {[%emt 0:01:11]} Nd5 {[%emt 0:05:39]} 24. Na7 {[%emt 0:02:36]} Qb7
{[%emt 0:00:04]} 25. Nb5 {[%emt 0:00:09]} N7f6 {[%emt 0:01:49]} 26. Bg2 {
[%emt 0:00:17]} Qc6 {[%emt 0:00:46]} 27. Na3 {[%emt 0:02:48]} a4 {[%emt 0:00:
00]} 28. Qc4 {[%emt 0:02:01]} Nc7 {[%emt 0:00:10]} 29. Bb2 {[%emt 0:01:02]} b5
{[%emt 0:01:06]} 30. Qc1 {[%emt 0:02:07]} Nd7 {[%emt 0:01:15]} 31. Nb1 {
[%emt 0:02:03]} b4 {[%emt 0:01:01]} 32. Qc2 {[%emt 0:06:05]} Nb6 {[%emt 0:00:
00]} 33. Rc1 {[%emt 0:00:15]} c4 {[%emt 0:00:58]} 34. Bd4 {[%emt 0:00:17]} Ncd5
{[%emt 0:00:14]} 35. Qb2 {[%emt 0:02:46]} a3 {[%emt 0:01:38]} 36. Qc2 {[%emt 0:
00:00]} Rfe8 {[%emt 0:01:06]} 37. d3 {[%emt 0:01:58]} exd3 {[%emt 0:01:10]} 38.
exd3 {[%emt 0:00:05]} Qd6 {[%emt 0:00:52]} 39. e4 {[%emt 0:00:46]} cxd3 {
[%emt 0:00:14]} 40. Qxd3 {[%emt 0:00:14]} Nc7 {[%emt 0:00:50]} 41. Qe3 {
[%emt 0:30:54]} Nd7 {[%emt 0:10:04]} 42. e5 {[%emt 0:00:00]} Qe6 {[%emt 0:00:
00]} 43. Nxa3 {[%emt 0:00:00]} bxa3 {[%emt 0:09:51]} 44. Rxc7 {[%emt 0:00:00]}
Qxa2 {[%emt 0:00:04]} 45. Bh3 {[%emt 0:00:00]} Qb1+ {[%emt 0:00:18]} 46. Rc1 {
[%emt 0:00:00]} a2 {[%emt 0:00:16]} 47. Rf4 {[%emt 0:00:00]} Nxe5 {[%emt 0:00:
00]} 48. Rff1 {[%emt 0:00:00]} Qb8 {[%emt 0:00:26]} 49. Ba1 {[%emt 0:00:00]}
Nd3 {[%emt 0:02:28]} 50. Qd4 {[%emt 0:00:00]} Qa7 {[%emt 0:00:18]} 51. Rcd1 {
[%emt 0:00:00]} Qxd4+ {[%emt 0:00:27]} 52. Bxd4 {[%emt 0:00:00]} h5 {[%emt 0:
00:00]} 53. Ra1 {[%emt 0:00:00]} Re2 {[%emt 0:00:20]} 54. Rfd1 {[%emt 0:00:00]}
Ne1 {[%emt 0:01:08]} 55. Bd7 {[%emt 0:02:32]} Nf3+ {[%emt 0:00:22]} 56. Kf1 {
[%emt 0:00:13]} Nxh2+ {[%emt 0:00:03]} 57. Kg1 {[%emt 0:00:06]} Nf3+ {[%emt 0:
00:00]} 58. Kf1 {[%emt 0:00:09]} R8e7 {[%emt 0:02:14]} 59. Bc5 {[%emt 0:00:21]}
R7e5 {[%emt 0:00:56]} 60. Bd6 {[%emt 0:00:11]} Nh2+ {[%emt 0:00:59]} 61. Kg1 {
[%emt 0:00:07]} R5e3 {[%emt 0:00:37]} 62. Bf4 {[%emt 0:00:31]} Rb3 {[%emt 0:00:
00]} 63. Ba4 {[%emt 0:02:02]} Nf3+ {[%emt 0:00:17]} 64. Kf1 {[%emt 0:00:07]}
Rbb2 {[%emt 0:00:05]} 0-1

[Event "44th Chess Olympiad Women 2022"]
[Site "Chennai"]
[Date "2022.08.05"]
[Round "7.31"]
[White "Norlamo, Sarabella"]
[Black "Onoja, Iyefu Joy"]
[Result "1-0"]
[WhiteElo "1925"]
[BlackElo "1869"]
[Annotator "NA"]
[PlyCount "123"]
[EventDate "2022.??.??"]
[TimeControl "60"]

1. d4 {[%emt 0:00:03]} d5 {[%emt 0:01:04]} 2. c4 {[%emt 0:00:07]} e6 {[%emt 0:
00:00]} 3. cxd5 {[%emt 0:00:06]} exd5 {[%emt 0:00:06]} 4. Nc3 {[%emt 0:00:05]}
Nf6 {[%emt 0:00:21]} 5. Bg5 {[%emt 0:00:07]} Be7 {[%emt 0:00:42]} 6. e3 {
[%emt 0:00:12]} O-O {[%emt 0:01:51]} 7. Bd3 {[%emt 0:00:20]} b6 {[%emt 0:01:55]
} 8. Rc1 {[%emt 0:02:36]} Bb7 {[%emt 0:03:35]} 9. Qc2 {[%emt 0:25:22]} Nbd7 {
[%emt 0:06:38]} 10. Nge2 {[%emt 0:03:36]} c5 {[%emt 0:12:00]} 11. O-O {[%emt 0:
00:00]} h6 {[%emt 0:22:57]} 12. Bf4 {[%emt 0:02:12]} Nh5 {[%emt 0:04:33]} 13.
Bg3 {[%emt 0:07:44]} cxd4 {[%emt 0:04:06]} 14. Nxd4 {[%emt 0:03:17]} Nxg3 {
[%emt 0:00:36]} 15. hxg3 {[%emt 0:00:05]} Bc5 {[%emt 0:01:28]} 16. Qa4 {
[%emt 0:04:49]} Ne5 {[%emt 0:02:41]} 17. Bb1 {[%emt 0:04:32]} a5 {[%emt 0:00:
00]} 18. Rfd1 {[%emt 0:04:39]} Qf6 {[%emt 0:06:16]} 19. Qb3 {[%emt 0:09:36]}
Nc4 {[%emt 0:05:23]} 20. Na4 {[%emt 0:08:29]} Rab8 {[%emt 0:06:33]} 21. Qc2 {
[%emt 0:02:52]} g6 {[%emt 0:01:03]} 22. Qe2 {[%emt 0:06:25]} Rfe8 {[%emt 0:00:
00]} 23. Qc2 {[%emt 0:03:08]} Rec8 {[%emt 0:04:44]} 24. Qe2 {[%emt 0:00:37]}
Re8 {[%emt 0:00:35]} 25. Qc2 {[%emt 0:00:11]} Rec8 {[%emt 0:00:08]} 26. Nc3 {
[%emt 0:01:00]} Rd8 {[%emt 0:01:48]} 27. Ncb5 {[%emt 0:00:54]} Rd7 {[%emt 0:00:
00]} 28. Qe2 {[%emt 0:00:54]} Re7 {[%emt 0:01:52]} 29. Bd3 {[%emt 0:00:46]} Ne5
{[%emt 0:01:53]} 30. Bc2 {[%emt 0:00:10]} Nc6 {[%emt 0:01:09]} 31. Qg4 {
[%emt 0:01:29]} Nb4 {[%emt 0:01:48]} 32. Bb1 {[%emt 0:00:37]} Ba6 {[%emt 0:00:
00]} 33. Nc3 {[%emt 0:00:26]} Bb7 {[%emt 0:00:39]} 34. a3 {[%emt 0:00:16]} Na6
{[%emt 0:00:22]} 35. Ncb5 {[%emt 0:01:02]} Nc7 {[%emt 0:01:12]} 36. Nc3 {
[%emt 0:00:05]} h5 {[%emt 0:00:17]} 37. Qh4 {[%emt 0:00:47]} Qxh4 {[%emt 0:00:
00]} 38. gxh4 {[%emt 0:00:01]} Rd8 {[%emt 0:00:16]} 39. Na4 {[%emt 0:01:03]}
Bxd4 {[%emt 0:00:41]} 40. Rxd4 {[%emt 0:00:24]} Ne6 {[%emt 0:00:17]} 41. Rdd1 {
[%emt 0:12:12]} Rd6 {[%emt 0:01:36]} 42. Ba2 {[%emt 0:04:31]} Ng7 {[%emt 0:00:
00]} 43. Nc3 {[%emt 0:02:48]} Re5 {[%emt 0:06:14]} 44. Nb5 {[%emt 0:01:50]} Rd7
{[%emt 0:00:11]} 45. Rc7 {[%emt 0:02:36]} Ree7 {[%emt 0:03:06]} 46. Rxd7 {
[%emt 0:01:23]} Rxd7 {[%emt 0:00:07]} 47. Nc3 {[%emt 0:03:56]} d4 {[%emt 0:00:
00]} 48. Na4 {[%emt 0:02:03]} Nf5 {[%emt 0:06:54]} 49. Nxb6 {[%emt 0:01:16]}
Re7 {[%emt 0:02:02]} 50. exd4 {[%emt 0:01:09]} Nxh4 {[%emt 0:00:35]} 51. d5 {
[%emt 0:01:12]} Re2 {[%emt 0:02:15]} 52. d6 {[%emt 0:00:49]} Bc6 {[%emt 0:00:
00]} 53. d7 {[%emt 0:00:37]} Bxd7 {[%emt 0:00:26]} 54. Rxd7 {[%emt 0:00:33]}
Rxb2 {[%emt 0:00:16]} 55. Bxf7+ {[%emt 0:00:09]} Kf8 {[%emt 0:00:29]} 56. Nc4 {
[%emt 0:00:27]} Rb5 {[%emt 0:00:56]} 57. Ra7 {[%emt 0:01:13]} Rg5 {[%emt 0:00:
00]} 58. g3 {[%emt 0:00:28]} Nf3+ {[%emt 0:00:13]} 59. Kf1 {[%emt 0:00:29]}
Nh2+ {[%emt 0:00:24]} 60. Kg2 {[%emt 0:00:23]} Ng4 {[%emt 0:00:16]} 61. Be6 {
[%emt 0:00:39]} Nf6 {[%emt 0:01:07]} 62. Rf7+ {[%emt 0:00:15]} 1-0

[Event "44th Chess Olympiad Women 2022"]
[Site "Chennai"]
[Date "2022.08.05"]
[Round "7.31"]
[White "Ogbiyoyo, Perpetual Eloho"]
[Black "Tuominen, Tanja"]
[Result "1-0"]
[WhiteElo "1886"]
[BlackElo "2080"]
[Annotator "NA"]
[PlyCount "91"]
[EventDate "2022.??.??"]
[TimeControl "60"]

1. e4 {[%emt 0:00:16]} c5 {[%emt 0:00:04]} 2. f4 {[%emt 0:00:21]} d5 {[%emt 0:
00:00]} 3. Bb5+ {[%emt 0:00:16]} Nc6 {[%emt 0:08:24]} 4. Bxc6+ {[%emt 0:00:57]}
bxc6 {[%emt 0:00:03]} 5. d3 {[%emt 0:00:42]} g6 {[%emt 0:03:00]} 6. Nf3 {
[%emt 0:01:07]} Bg7 {[%emt 0:00:36]} 7. Nc3 {[%emt 0:02:00]} Ba6 {[%emt 0:00:
00]} 8. e5 {[%emt 0:03:45]} c4 {[%emt 0:11:23]} 9. d4 {[%emt 0:02:20]} h5 {
[%emt 0:05:47]} 10. Be3 {[%emt 0:04:46]} Nh6 {[%emt 0:00:56]} 11. h3 {[%emt 0:
00:00]} Nf5 {[%emt 0:00:41]} 12. Bf2 {[%emt 0:00:37]} h4 {[%emt 0:01:49]} 13.
Qd2 {[%emt 0:03:55]} Rb8 {[%emt 0:14:02]} 14. Rb1 {[%emt 0:01:32]} Qa5 {
[%emt 0:06:30]} 15. O-O {[%emt 0:02:12]} Bc8 {[%emt 0:01:14]} 16. Ne2 {[%emt 0:
00:00]} Qxd2 {[%emt 0:01:08]} 17. Nxd2 {[%emt 0:00:21]} f6 {[%emt 0:01:24]} 18.
Nf3 {[%emt 0:02:23]} Kf7 {[%emt 0:02:34]} 19. Rfe1 {[%emt 0:01:41]} Be6 {
[%emt 0:02:03]} 20. b3 {[%emt 0:00:56]} cxb3 {[%emt 0:03:46]} 21. axb3 {
[%emt 0:00:45]} Bc8 {[%emt 0:02:22]} 22. Ra1 {[%emt 0:00:30]} a6 {[%emt 0:00:
00]} 23. Ra2 {[%emt 0:01:46]} Rh5 {[%emt 0:00:46]} 24. Rea1 {[%emt 0:02:04]} g5
{[%emt 0:00:54]} 25. fxg5 {[%emt 0:01:51]} fxg5 {[%emt 0:00:09]} 26. Ne1 {
[%emt 0:00:36]} c5 {[%emt 0:03:14]} 27. Nd3 {[%emt 0:03:52]} cxd4 {[%emt 0:00:
00]} 28. Nxd4 {[%emt 0:00:52]} Nxd4 {[%emt 0:04:15]} 29. Bxd4 {[%emt 0:00:10]}
Rh6 {[%emt 0:02:25]} 30. Nc5 {[%emt 0:00:49]} Rc6 {[%emt 0:01:03]} 31. c3 {
[%emt 0:04:07]} Rxc5 {[%emt 0:13:12]} 32. Bxc5 {[%emt 0:00:23]} Bxe5 {[%emt 0:
00:00]} 33. Rf1+ {[%emt 0:02:11]} Ke8 {[%emt 0:02:21]} 34. Re2 {[%emt 0:00:49]}
Bf4 {[%emt 0:01:02]} 35. Rxe7+ {[%emt 0:00:28]} Kd8 {[%emt 0:00:03]} 36. b4 {
[%emt 0:01:53]} Rb5 {[%emt 0:01:32]} 37. Rfe1 {[%emt 0:01:47]} Bd7 {[%emt 0:00:
00]} 38. Rg7 {[%emt 0:00:27]} Rb7 {[%emt 0:00:21]} 39. Rd1 {[%emt 0:00:38]} Be5
{[%emt 0:00:35]} 40. Rxg5 {[%emt 0:02:44]} Bxc3 {[%emt 0:00:17]} 41. Rgxd5 {
[%emt 0:30:51]} Ke8 {[%emt 0:07:42]} 42. Rf1 {[%emt 0:00:00]} Kd8 {[%emt 0:00:
00]} 43. Rd6 {[%emt 0:00:00]} a5 {[%emt 0:05:25]} 44. Rb6 {[%emt 0:00:00]} Rc7
{[%emt 0:05:01]} 45. Rf8+ {[%emt 0:00:00]} Be8 {[%emt 0:00:09]} 46. Rb8+ {
[%emt 0:00:00]} 1-0